[Event "LEM Niedersachsen-A-Open 2025"]
[Site "Verden"]
[Date "2025.01.04"]
[Round "5.34"]
[White "Wilmink, Luca"]
[Black "Buecklers, Martin"]
[Result "1/2-1/2"]
[ECO "B08"]
[WhiteElo "1792"]
[BlackElo "1859"]
[Annotator "NA RC"]
[PlyCount "71"]
[EventDate "2024.12.27"]
[EventType "swiss"]
[EventCountry "GER"]
[SourceTitle "playchess.com"]
[Source "ChessBase"]
[SourceQuality "1"]
[TimeControl "40/5400+30:1800+30"]

1. e4 {[%emt 0:00:05]} g6 {[%emt 0:00:05]} 2. d4 {[%emt 0:02:17]} Bg7 {[%emt 0:00:10]} 3. Nf3 {[%emt 0:03:34]} d6 {[%emt 0:00:57]} 4. Nc3 {[%emt 0:04:29]} Nf6 {[%emt 0:03:19]} 5. Bg5 {[%emt 0:01:31]} Bg4 {[%emt 0:10:12]} 6. Be2 {[%emt 0:02:24] B08: Pirc Defence: Classical System.} Nc6 {[%emt 0:03:14]} 7. d5 {[%emt 0:05:17]} Bxf3 {[%emt 0:00:36]} 8. gxf3 {[%emt 0:00:39]} Nb8 {[%emt 0:00:12]} 9. Qd2 {[%emt 0:01:38]} e5 {[%emt 0:08:50] [#]} 10. O-O-O {[%emt 0:01:46]} (10. dxe6 $1 $16 fxe6 11. Rg1) 10... h6 {[%emt 0:02:59]} 11. Be3 {[%emt 0:04:39]} Qe7 {[%emt 0:01:47]} 12. h4 {[%emt 0:05:04]} Nh5 {[%emt 0:05:50]} 13. Bb5+ {[%emt 0:06:02]} Nd7 {[%emt 0:00:48]} 14. Ne2 {[%emt 0:00:22]} a6 {[%emt 0:02:52]} 15. Bd3 {[%emt 0:00:56]} Bf6 {[%emt 0:08:49]} 16. Bxh6 {[%emt 0:16:14]} Bxh4 {[%emt 0:00:12]} 17. Be3 {[%emt 0:00:28]} g5 {[%emt 0:11:06]} 18. Ng3 {[%emt 0:06:00]} Ng7 {[%emt 0:00:08]} 19. Kb1 {[%emt 0:01:32]} f6 {[%emt 0:03:38]} 20. Qa5 {[%emt 0:02:09]} b6 {[%emt 0:02:25]} 21. Qc3 {[%emt 0:00:55]} Nc5 {[%emt 0:04:04]} 22. Bf1 {[%emt 0:10:31]} Kf7 {[%emt 0:01:05]} 23. Bh3 {[%emt 0:02:08]} Bxg3 {[%emt 0:00:42]} 24. fxg3 {[%emt 0:00:07]} a5 {[%emt 0:00:33]} 25. Bg4 {[%emt 0:05:57]} Qe8 {[%emt 0:02:13]} 26. Bxc5 {[%emt 0:03:01]} Rxh1 $18 {[%emt 0:00:45]} (26... bxc5 27. Rxh8 Qxh8) 27. Rxh1 {[%emt 0:00:22]} bxc5 {[%emt 0:00:28]} 28. Qc4 {[%emt 0:01:33]} Rb8 {[%emt 0:01:10]} 29. a4 {[%emt 0:01:42]} Rb4 {[%emt 0:02:34]} 30. Be6+ {[%emt 0:03:39]} Kg6 {[%emt 0:06:20]} 31. Qe2 {[%emt 0:05:16]} Nxe6 {[%emt 0:05:28]} 32. dxe6 {[%emt 0:00:38]} Qxe6 {[%emt 0:02:22]} 33. Qh2 {[%emt 0:00:47]} Qg8 {[%emt 0:01:20]} 34. Qh3 {[%emt 0:01:29]} Rb8 {[%emt 0:05:34]} 35. Qf5+ {[%emt 0:00:45]} Kg7 {[%emt 0:00:34]} 36. Qd7+ {[%emt 0:00:14]} 1/2-1/2

[Event "LEM Niedersachsen-A-Open 2025"]
[Site "Verden"]
[Date "2025.01.04"]
[Round "5.35"]
[White "Krumschmidt, Michael"]
[Black "Aden, Dagmar"]
[Result "1-0"]
[ECO "D36"]
[WhiteElo "1787"]
[BlackElo "1861"]
[Annotator "NA RC"]
[PlyCount "55"]
[EventDate "2024.12.27"]
[EventType "swiss"]
[EventCountry "GER"]
[SourceTitle "playchess.com"]
[Source "ChessBase"]
[SourceQuality "1"]
[TimeControl "40/5400+30:1800+30"]

1. d4 {[%emt 0:00:06]} Nf6 {[%emt 0:00:11]} 2. c4 {[%emt 0:01:13]} e6 {[%emt 0:00:22]} 3. Nc3 {[%emt 0:00:10]} d5 {[%emt 0:00:33]} 4. Bg5 {[%emt 0:00:20]} Nbd7 {[%emt 0:00:48]} 5. cxd5 {[%emt 0:02:32]} exd5 {[%emt 0:00:09]} 6. Nf3 {[%emt 0:00:48]} c6 {[%emt 0:02:40]} 7. e3 {[%emt 0:01:41]} Be7 {[%emt 0:01:22]} 8. Bd3 {[%emt 0:00:08]} O-O {[%emt 0:00:52]} 9. Qc2 {[%emt 0:00:59]} Re8 {[%emt 0:01:00]} 10. a3 {[%emt 0:05:31] D36: Queen's Gambit Declined: Exchange Variation: Main line (5 Bg5 c6 6 Qc2).} a5 {[%emt 0:01:40]} 11. h4 {[%emt 0:02:25]} Nf8 {[%emt 0:02:07]} 12. Ne5 {[%emt 0:07:03]} Ng4 {[%emt 0:06:32]} 13. O-O-O {[%emt 0:08:08]} Nxe5 {[%emt 0:03:30]} 14. dxe5 {[%emt 0:00:03]} f6 {[%emt 0:01:30]} 15. exf6 {[%emt 0:05:54]} Bxf6 {[%emt 0:00:09]} 16. Ne4 {[%emt 0:01:16]} Qe7 {[%emt 0:06:01]} 17. Nxf6+ {[%emt 0:04:02]} gxf6 {[%emt 0:00:09]} 18. Bh6 {[%emt 0:01:21]} Ne6 {[%emt 0:05:28]} 19. Rh3 {[%emt 0:03:06]} Bd7 {[%emt 0:01:20]} 20. Bf5 {[%emt 0:06:11]} Kh8 {[%emt 0:01:47]} 21. g4 {[%emt 0:06:12]} Ng7 {[%emt 0:10:29]} 22. Bxh7 {[%emt 0:15:31]} ({White should play} 22. Bxd7 $16 Qxd7 23. Rd3) 22... Bxg4 {[%emt 0:00:40]} 23. Rg1 {[%emt 0:00:27]} Bxh3 {[%emt 0:00:58]} 24. Bxg7+ {[%emt 0:00:34]} Qxg7 {[%emt 0:00:11]} 25. Rxg7 $18 {[%emt 0:02:00]} Kxg7 {[%emt 0:00:07]} 26. Qg6+ {[%emt 0:00:07]} Kh8 {[%emt 0:01:04]} 27. Qh6 {[%emt 0:00:51]} Re7 {[%emt 0:01:43]} 28. Bf5+ {[%emt 0:00:26]} 1-0

[Event "LEM Niedersachsen-A-Open 2025"]
[Site "Verden"]
[Date "2025.01.04"]
[Round "5.36"]
[White "Klages, Jonas"]
[Black "Schulze, Tim"]
[Result "0-1"]
[ECO "B29"]
[WhiteElo "1776"]
[BlackElo "1804"]
[Annotator "NA RC"]
[PlyCount "62"]
[EventDate "2024.12.27"]
[EventType "swiss"]
[EventCountry "GER"]
[SourceTitle "playchess.com"]
[Source "ChessBase"]
[SourceQuality "1"]
[TimeControl "40/5400+30:1800+30"]

1. e4 {[%emt 0:00:01]} c5 {[%emt 0:00:06]} 2. Nf3 {[%emt 0:00:05]} Nf6 {[%emt 0:00:02]} 3. Nc3 {[%emt 0:00:28]} d5 {[%emt 0:00:05]} 4. exd5 {[%emt 0:08:55]} Nxd5 {[%emt 0:00:05]} 5. Ne4 {[%emt 0:01:15]} e6 {[%emt 0:01:45]} 6. c4 {[%emt 0:10:22]} Nf6 {[%emt 0:02:36]} 7. Nc3 {[%emt 0:00:48]} Nc6 {[%emt 0:00:24]} 8. g3 {[%emt 0:02:36]} Be7 {[%emt 0:01:34]} 9. Bg2 {[%emt 0:00:08]} O-O {[%emt 0:00:11]} 10. O-O {[%emt 0:00:08]} a6 {[%emt 0:00:19]} 11. b3 {[%emt 0:01:17]} Rb8 {[%emt 0:05:09]} 12. Bb2 {[%emt 0:21:41]} b5 {[%emt 0:01:36]} 13. d3 {[%emt 0:05:04]} Qb6 {[%emt 0:02:57]} 14. Qd2 {[%emt 0:04:38]} Rd8 {[%emt 0:01:10]} 15. Rfe1 {[%emt 0:00:46]} Bb7 {[%emt 0:01:43]} 16. Qf4 {[%emt 0:05:03]} Rxd3 {[%emt 0:06:37]} 17. Ne4 {[%emt 0:02:37]} Nxe4 {[%emt 0:06:11]} 18. Qxe4 {[%emt 0:00:22]} Qd8 {[%emt 0:08:01]} 19. Qf4 {[%emt 0:06:13]} Bf6 {[%emt 0:06:03]} 20. Bxf6 {[%emt 0:02:36]} Qxf6 {[%emt 0:00:02]} 21. Qxf6 {[%emt 0:00:27]} gxf6 {[%emt 0:00:02]} 22. Rec1 {[%emt 0:01:31]} b4 {[%emt 0:04:04]} 23. Ne1 {[%emt 0:03:12]} Rd7 {[%emt 0:00:59]} 24. Nc2 {[%emt 0:00:57]} Rbd8 {[%emt 0:02:13]} 25. a3 {[%emt 0:02:09]} bxa3 {[%emt 0:01:56]} 26. Rxa3 {[%emt 0:01:29]} Rd1+ {[%emt 0:00:08]} 27. Rxd1 {[%emt 0:00:08]} Rxd1+ {[%emt 0:00:02]} 28. Bf1 {[%emt 0:00:10]} Ne5 {[%emt 0:01:55]} 29. Ne3 {[%emt 0:01:52]} Nf3+ {[%emt 0:01:22]} 30. Kg2 {[%emt 0:02:22]} Ng5+ {[%emt 0:04:14]} 31. f3 {[%emt 0:02:27]} Rd2+ {[%emt 0:00:55]} 0-1